[Event "Titled Tuesday Blitz March 15 Early 2022"]
[White "Petersson, Kjell"]
[Black "Silva, Kaua Marques"]
[WhiteFideId "1705148"]
[BlackFideId "22701168"]
[WhiteElo "2009"]
[BlackElo "2071"]
[Result "1-0"]
[Round "04"]
[TimeControl "180+1"]
[Date "2022.03.15"]
[WhiteClock "0:00:23"]
[BlackClock "0:00:03"]

1. d4 {[%clk 0:03:00]}  Nf6 {[%clk 0:02:44]} 2. Bf4 {[%clk 0:03:00]}  d5 {[%clk 0:02:44]} 3. e3 {[%clk 0:03:00]}  Bg4 {[%clk 0:02:23]} 4. f3 {[%clk 0:02:51]}  Bh5 {[%clk 0:02:21]} 5. g4 {[%clk 0:02:47]}  Bg6 {[%clk 0:02:19]} 6. h4 {[%clk 0:02:47]}  h5 {[%clk 0:02:14]} 7. g5 {[%clk 0:02:44]}  Nfd7 {[%clk 0:02:12]} 8. Bd3 {[%clk 0:02:43]}  Bxd3 {[%clk 0:02:11]} 9. Qxd3 {[%clk 0:02:44]}  g6 {[%clk 0:02:11]} 10. Nc3 {[%clk 0:02:39]}  c6 {[%clk 0:02:08]} 11. Nge2 {[%clk 0:02:29]}  Bg7 {[%clk 0:02:01]} 12. e4 {[%clk 0:02:11]}  e6 {[%clk 0:01:29]} 13. Bd6 {[%clk 0:01:58]}  Bf8 {[%clk 0:01:14]} 14. Bxf8 {[%clk 0:01:53]}  Kxf8 {[%clk 0:01:13]} 15. O-O-O {[%clk 0:01:45]}  Kg7 {[%clk 0:01:12]} 16. f4 {[%clk 0:01:45]}  b5 {[%clk 0:01:09]} 17. f5 {[%clk 0:01:21]}  Rf8 {[%clk 0:00:58]} 18. fxg6 {[%clk 0:01:10]}  fxg6 {[%clk 0:00:58]} 19. e5 {[%clk 0:01:01]}  Qa5 {[%clk 0:00:57]} 20. Rdf1 {[%clk 0:00:52]}  Na6 {[%clk 0:00:56]} 21. Nf4 {[%clk 0:00:38]}  Rxf4 {[%clk 0:00:39]} 22. Rxf4 {[%clk 0:00:39]}  b4 {[%clk 0:00:28]} 23. Nb1 {[%clk 0:00:38]}  Rf8 {[%clk 0:00:23]} 24. Qf3 {[%clk 0:00:34]}  Rxf4 {[%clk 0:00:21]} 25. Qxf4 {[%clk 0:00:35]}  Qd8 {[%clk 0:00:21]} 26. Rf1 {[%clk 0:00:35]}  Qe7 {[%clk 0:00:16]} 27. Nd2 {[%clk 0:00:34]}  Nc7 {[%clk 0:00:16]} 28. Nb3 {[%clk 0:00:34]}  Nb5 {[%clk 0:00:14]} 29. Rf2 {[%clk 0:00:32]}  Nc7 {[%clk 0:00:08]} 30. Rf3 {[%clk 0:00:31]}  Na6 {[%clk 0:00:08]} 31. Rf1 {[%clk 0:00:30]}  Nab8 {[%clk 0:00:09]} 32. Na5 {[%clk 0:00:29]}  Qe8 {[%clk 0:00:07]} 33. Nb7 {[%clk 0:00:28]}  Qe7 {[%clk 0:00:03]} 34. Nd6 {[%clk 0:00:28]}  Kg8 {[%clk 0:00:03]} 35. Qf7+ {[%clk 0:00:27]}  Qxf7 {[%clk 0:00:04]} 36. Rxf7 {[%clk 0:00:28]}  a5 {[%clk 0:00:02]} 37. Re7 {[%clk 0:00:28]}  Nf8 {[%clk 0:00:03]} 38. Re8 {[%clk 0:00:28]}  Nd7 {[%clk 0:00:03]} 39. Rd8 {[%clk 0:00:28]}  Kg7 {[%clk 0:00:03]} 40. Nb7 {[%clk 0:00:26]}  c5 {[%clk 0:00:03]} 41. dxc5 {[%clk 0:00:26]}  Nxe5 {[%clk 0:00:02]} 42. Nxa5 {[%clk 0:00:23]}  Kf7 {[%clk 0:00:03]} 43. c6 {[%clk 0:00:22]}  Ke7 {[%clk 0:00:03]} 44. c7 {[%clk 0:00:23]} 1-0


[Site "https://www.chess.com"]

[Event "Titled Tuesday Blitz March 15 Early 2022"]
[White "Petrova, Irina"]
[Black "Sovetbekova, Nurai"]
[WhiteFideId "14124122"]
[BlackFideId "13801910"]
[WhiteElo "1993"]
[BlackElo "1538"]
[Result "0-1"]
[Round "04"]
[TimeControl "180+1"]
[Date "2022.03.15"]
[WhiteClock "0:00:01"]
[BlackClock "0:00:04"]

1. e4 {[%clk 0:02:56]}  c5 {[%clk 0:02:59]} 2. Nf3 {[%clk 0:02:56]}  d6 {[%clk 0:02:59]} 3. Bb5+ {[%clk 0:02:56]}  Nd7 {[%clk 0:02:53]} 4. O-O {[%clk 0:02:55]}  Nf6 {[%clk 0:02:51]} 5. Re1 {[%clk 0:02:55]}  g6 {[%clk 0:02:46]} 6. c3 {[%clk 0:02:52]}  Bg7 {[%clk 0:02:38]} 7. d4 {[%clk 0:02:51]}  cxd4 {[%clk 0:02:34]} 8. cxd4 {[%clk 0:02:52]}  a6 {[%clk 0:02:35]} 9. Bf1 {[%clk 0:02:51]}  O-O {[%clk 0:02:28]} 10. Nc3 {[%clk 0:02:49]}  Nb6 {[%clk 0:02:04]} 11. h3 {[%clk 0:02:38]}  Bd7 {[%clk 0:01:57]} 12. b3 {[%clk 0:02:26]}  Rc8 {[%clk 0:01:50]} 13. Bb2 {[%clk 0:02:26]}  d5 {[%clk 0:00:56]} 14. e5 {[%clk 0:02:24]}  Ne4 {[%clk 0:00:40]} 15. Nxe4 {[%clk 0:02:16]}  dxe4 {[%clk 0:00:41]} 16. Rxe4 {[%clk 0:02:16]}  Bc6 {[%clk 0:00:38]} 17. Re1 {[%clk 0:02:14]}  Qd7 {[%clk 0:00:33]} 18. Rc1 {[%clk 0:02:02]}  Nd5 {[%clk 0:00:32]} 19. Rc5 {[%clk 0:01:42]}  b6 {[%clk 0:00:25]} 20. Rc1 {[%clk 0:01:39]}  a5 {[%clk 0:00:21]} 21. Nd2 {[%clk 0:01:22]}  Nf4 {[%clk 0:00:17]} 22. Ne4 {[%clk 0:01:15]}  f5 {[%clk 0:00:13]} 23. exf6 {[%clk 0:01:13]}  exf6 {[%clk 0:00:13]} 24. Bc4+ {[%clk 0:01:08]}  Kh8 {[%clk 0:00:13]} 25. Qd2 {[%clk 0:00:58]}  f5 {[%clk 0:00:13]} 26. Qxf4 {[%clk 0:00:51]}  fxe4 {[%clk 0:00:13]} 27. Qg3 {[%clk 0:00:42]}  Rf5 {[%clk 0:00:10]} 28. d5 {[%clk 0:00:36]}  Bxd5 {[%clk 0:00:09]} 29. Bxg7+ {[%clk 0:00:35]}  Kxg7 {[%clk 0:00:10]} 30. Bxd5 {[%clk 0:00:32]}  Rxc1 {[%clk 0:00:08]} 31. Rxc1 {[%clk 0:00:33]}  Qxd5 {[%clk 0:00:07]} 32. Rc7+ {[%clk 0:00:32]}  Rf7 {[%clk 0:00:07]} 33. Rxf7+ {[%clk 0:00:26]}  Kxf7 {[%clk 0:00:08]} 34. Qc7+ {[%clk 0:00:25]}  Kg8 {[%clk 0:00:07]} 35. Qxb6 {[%clk 0:00:24]}  Qd1+ {[%clk 0:00:06]} 36. Kh2 {[%clk 0:00:24]}  Qe2 {[%clk 0:00:07]} 37. Qe3 {[%clk 0:00:14]}  Qxa2 {[%clk 0:00:06]} 38. Kg3 {[%clk 0:00:13]}  a4 {[%clk 0:00:04]} 39. bxa4 {[%clk 0:00:12]}  Qxa4 {[%clk 0:00:05]} 40. Kf4 {[%clk 0:00:12]}  Qd7 {[%clk 0:00:04]} 41. Kxe4 {[%clk 0:00:11]}  Qf5+ {[%clk 0:00:04]} 42. Kd4 {[%clk 0:00:11]}  Qf6+ {[%clk 0:00:03]} 43. Kd3 {[%clk 0:00:10]}  Qd6+ {[%clk 0:00:03]} 44. Ke2 {[%clk 0:00:10]}  Qb4 {[%clk 0:00:03]} 45. Qe6+ {[%clk 0:00:09]}  Kg7 {[%clk 0:00:03]} 46. Qe5+ {[%clk 0:00:08]}  Kg8 {[%clk 0:00:03]} 47. Qe6+ {[%clk 0:00:08]}  Kg7 {[%clk 0:00:04]} 48. g3 {[%clk 0:00:08]}  Qb2+ {[%clk 0:00:03]} 49. Kf3 {[%clk 0:00:07]}  Qc3+ {[%clk 0:00:04]} 50. Qe3 {[%clk 0:00:07]}  Qc6+ {[%clk 0:00:03]} 51. Ke2 {[%clk 0:00:07]}  Qc2+ {[%clk 0:00:03]} 52. Qd2 {[%clk 0:00:07]}  Qe4+ {[%clk 0:00:03]} 53. Kd1 {[%clk 0:00:05]}  Qh1+ {[%clk 0:00:03]} 54. Qe1 {[%clk 0:00:05]}  Qxh3 {[%clk 0:00:03]} 55. Qe5+ {[%clk 0:00:05]}  Kh6 {[%clk 0:00:03]} 56. Qf4+ {[%clk 0:00:06]}  Kg7 {[%clk 0:00:03]} 57. Qe5+ {[%clk 0:00:06]}  Kf7 {[%clk 0:00:03]} 58. Qd5+ {[%clk 0:00:05]}  Kf6 {[%clk 0:00:03]} 59. Qd4+ {[%clk 0:00:05]}  Ke6 {[%clk 0:00:03]} 60. Qe3+ {[%clk 0:00:05]}  Kf5 {[%clk 0:00:03]} 61. Qf3+ {[%clk 0:00:05]}  Ke6 {[%clk 0:00:03]} 62. Qe2+ {[%clk 0:00:04]}  Kf6 {[%clk 0:00:03]} 63. Qf3+ {[%clk 0:00:04]}  Qf5 {[%clk 0:00:04]} 64. Qc6+ {[%clk 0:00:03]}  Kg5 {[%clk 0:00:04]} 65. Ke2 {[%clk 0:00:02]}  Qe5+ {[%clk 0:00:04]} 66. Kf1 {[%clk 0:00:02]}  Qf5 {[%clk 0:00:04]} 67. Kg2 {[%clk 0:00:02]}  Kh5 {[%clk 0:00:03]} 68. Qc2 {[%clk 0:00:01]}  Kh6 {[%clk 0:00:04]} 0-1


[Site "https://www.chess.com"]

[Event "Titled Tuesday Blitz March 15 Early 2022"]
[White "Polster, Christian"]
[Black "Shuvalova, Polina"]
[WhiteFideId "12965081"]
[BlackFideId "24171760"]
[WhiteElo "2294"]
[BlackElo "2355"]
[Result "0-1"]
[Round "04"]
[TimeControl "180+1"]
[Date "2022.03.15"]
[WhiteClock "0:00:06"]
[BlackClock "0:00:51"]

1. e4 {[%clk 0:03:00]}  c5 {[%clk 0:02:57]} 2. Nc3 {[%clk 0:02:56]}  d6 {[%clk 0:02:53]} 3. Nge2 {[%clk 0:02:56]}  Nf6 {[%clk 0:02:51]} 4. g3 {[%clk 0:02:56]}  Nc6 {[%clk 0:02:50]} 5. Bg2 {[%clk 0:02:56]}  g6 {[%clk 0:02:44]} 6. O-O {[%clk 0:02:56]}  Bg7 {[%clk 0:02:45]} 7. d3 {[%clk 0:02:28]}  O-O {[%clk 0:02:42]} 8. h3 {[%clk 0:02:27]}  Rb8 {[%clk 0:02:42]} 9. a4 {[%clk 0:02:26]}  a6 {[%clk 0:02:41]} 10. f4 {[%clk 0:02:17]}  Nd7 {[%clk 0:02:37]} 11. Be3 {[%clk 0:02:13]}  Nd4 {[%clk 0:02:35]} 12. a5 {[%clk 0:02:02]}  b5 {[%clk 0:02:25]} 13. axb6 {[%clk 0:01:59]}  Rxb6 {[%clk 0:02:22]} 14. Ra2 {[%clk 0:01:53]}  e6 {[%clk 0:02:08]} 15. f5 {[%clk 0:01:35]}  exf5 {[%clk 0:02:01]} 16. exf5 {[%clk 0:01:31]}  Nxf5 {[%clk 0:01:58]} 17. Rxf5 {[%clk 0:01:29]}  gxf5 {[%clk 0:01:59]} 18. Qd2 {[%clk 0:01:25]}  Bb7 {[%clk 0:01:52]} 19. Bg5 {[%clk 0:01:13]}  Qa8 {[%clk 0:01:46]} 20. Bxb7 {[%clk 0:00:52]}  Qxb7 {[%clk 0:01:47]} 21. Bh6 {[%clk 0:00:48]}  f6 {[%clk 0:01:38]} 22. Bxg7 {[%clk 0:00:34]}  Kxg7 {[%clk 0:01:39]} 23. Nf4 {[%clk 0:00:30]}  Re8 {[%clk 0:01:21]} 24. Nh5+ {[%clk 0:00:20]}  Kg6 {[%clk 0:01:19]} 25. Nd5 {[%clk 0:00:19]}  Rxb2 {[%clk 0:01:04]} 26. Ndf4+ {[%clk 0:00:15]}  Kf7 {[%clk 0:01:00]} 27. Qa5 {[%clk 0:00:10]}  Rb1+ {[%clk 0:00:57]} 28. Kf2 {[%clk 0:00:10]}  Qh1 {[%clk 0:00:52]} 29. Qc7 {[%clk 0:00:06]}  Qf1# {[%clk 0:00:51]} 0-1


[Site "https://www.chess.com"]

[Event "Titled Tuesday Blitz March 15 Early 2022"]
[White "Popadic, Dragan"]
[Black "De Souza, Cristiano Gomes"]
[WhiteFideId "913650"]
[BlackFideId "2151758"]
[WhiteElo "2222"]
[BlackElo "2068"]
[Result "1-0"]
[Round "04"]
[TimeControl "180+1"]
[Date "2022.03.15"]
[WhiteClock "0:02:12"]
[BlackClock "0:01:32"]

1. e4 {[%clk 0:02:59]}  c5 {[%clk 0:02:59]} 2. Nc3 {[%clk 0:02:59]}  d6 {[%clk 0:02:59]} 3. f4 {[%clk 0:02:58]}  a6 {[%clk 0:02:58]} 4. a4 {[%clk 0:02:57]}  g6 {[%clk 0:02:57]} 5. Nf3 {[%clk 0:02:58]}  Bg7 {[%clk 0:02:57]} 6. Bc4 {[%clk 0:02:58]}  Nc6 {[%clk 0:02:58]} 7. d3 {[%clk 0:02:55]}  e6 {[%clk 0:02:58]} 8. O-O {[%clk 0:02:54]}  Nge7 {[%clk 0:02:58]} 9. Qe1 {[%clk 0:02:54]}  O-O {[%clk 0:02:56]} 10. f5 {[%clk 0:02:54]}  exf5 {[%clk 0:02:55]} 11. Qh4 {[%clk 0:02:53]}  Ne5 {[%clk 0:02:33]} 12. Bg5 {[%clk 0:02:50]}  Re8 {[%clk 0:02:16]} 13. Nxe5 {[%clk 0:02:42]}  dxe5 {[%clk 0:02:11]} 14. Nd5 {[%clk 0:02:41]}  Kf8 {[%clk 0:01:46]} 15. Qxh7 {[%clk 0:02:26]}  Be6 {[%clk 0:01:44]} 16. Nxe7 {[%clk 0:02:24]}  Rxe7 {[%clk 0:01:43]} 17. Bxe6 {[%clk 0:02:23]}  fxe6 {[%clk 0:01:41]} 18. Bxe7+ {[%clk 0:02:15]}  Qxe7 {[%clk 0:01:41]} 19. Qxg6 {[%clk 0:02:15]}  Qf7 {[%clk 0:01:39]} 20. Qxf7+ {[%clk 0:02:15]}  Kxf7 {[%clk 0:01:40]} 21. exf5 {[%clk 0:02:15]}  exf5 {[%clk 0:01:40]} 22. Rxf5+ {[%clk 0:02:15]}  Ke6 {[%clk 0:01:41]} 23. Raf1 {[%clk 0:02:14]}  Rd8 {[%clk 0:01:32]} 24. Rf7 {[%clk 0:02:12]} 1-0


[Site "https://www.chess.com"]

[Event "Titled Tuesday Blitz March 15 Early 2022"]
[White "Pranav Anand"]
[Black "Orlov, Georgi"]
[WhiteFideId "46626786"]
[BlackFideId "2011271"]
[WhiteElo "2259"]
[BlackElo "2548"]
[Result "1-0"]
[Round "04"]
[TimeControl "180+1"]
[Date "2022.03.15"]
[WhiteClock "0:00:20"]
[BlackClock "0:00:13"]

1. Nf3 {[%clk 0:03:00]}  Nf6 {[%clk 0:02:59]} 2. g3 {[%clk 0:03:01]}  e6 {[%clk 0:02:58]} 3. Bg2 {[%clk 0:03:02]}  d5 {[%clk 0:02:58]} 4. O-O {[%clk 0:03:03]}  Be7 {[%clk 0:02:58]} 5. d3 {[%clk 0:03:03]}  O-O {[%clk 0:02:58]} 6. Nbd2 {[%clk 0:03:04]}  c5 {[%clk 0:02:58]} 7. e4 {[%clk 0:03:05]}  Nc6 {[%clk 0:02:58]} 8. Re1 {[%clk 0:03:05]}  b5 {[%clk 0:02:57]} 9. a4 {[%clk 0:03:04]}  bxa4 {[%clk 0:02:56]} 10. Rxa4 {[%clk 0:03:03]}  Rb8 {[%clk 0:02:53]} 11. b3 {[%clk 0:03:00]}  a5 {[%clk 0:02:52]} 12. e5 {[%clk 0:02:56]}  Nd7 {[%clk 0:02:51]} 13. Nf1 {[%clk 0:02:57]}  Qc7 {[%clk 0:02:37]} 14. Qe2 {[%clk 0:02:51]}  Ba6 {[%clk 0:02:35]} 15. Rg4 {[%clk 0:02:50]}  Kh8 {[%clk 0:02:34]} 16. h4 {[%clk 0:02:24]}  f5 {[%clk 0:02:32]} 17. exf6 {[%clk 0:02:23]}  Nxf6 {[%clk 0:02:32]} 18. Ra4 {[%clk 0:02:20]}  Bb5 {[%clk 0:02:26]} 19. Ra1 {[%clk 0:02:19]}  Nd4 {[%clk 0:02:11]} 20. Nxd4 {[%clk 0:02:16]}  cxd4 {[%clk 0:02:11]} 21. Bf4 {[%clk 0:02:15]}  Bd6 {[%clk 0:02:09]} 22. Bxd6 {[%clk 0:02:16]}  Qxd6 {[%clk 0:02:09]} 23. Qxe6 {[%clk 0:02:17]}  Qc7 {[%clk 0:02:04]} 24. Qe2 {[%clk 0:02:15]}  Rbe8 {[%clk 0:01:48]} 25. Qd2 {[%clk 0:02:15]}  Ng4 {[%clk 0:01:34]} 26. Rxe8 {[%clk 0:02:13]}  Bxe8 {[%clk 0:01:34]} 27. f3 {[%clk 0:02:08]}  Ne3 {[%clk 0:01:30]} 28. Nxe3 {[%clk 0:02:07]}  dxe3 {[%clk 0:01:30]} 29. Qxe3 {[%clk 0:02:08]}  Qxg3 {[%clk 0:01:28]} 30. Qf2 {[%clk 0:02:07]}  Qc7 {[%clk 0:01:21]} 31. Re1 {[%clk 0:02:05]}  Bh5 {[%clk 0:01:20]} 32. Re2 {[%clk 0:01:42]}  h6 {[%clk 0:01:19]} 33. Qe3 {[%clk 0:01:35]}  Qg3 {[%clk 0:01:11]} 34. Qf2 {[%clk 0:01:31]}  Qf4 {[%clk 0:01:09]} 35. Re1 {[%clk 0:01:25]}  Rf6 {[%clk 0:00:54]} 36. Kf1 {[%clk 0:00:56]}  Rg6 {[%clk 0:00:48]} 37. c4 {[%clk 0:00:44]}  dxc4 {[%clk 0:00:46]} 38. dxc4 {[%clk 0:00:45]}  Rd6 {[%clk 0:00:40]} 39. Kg1 {[%clk 0:00:38]}  Rd3 {[%clk 0:00:36]} 40. c5 {[%clk 0:00:32]}  Rxb3 {[%clk 0:00:31]} 41. Qc2 {[%clk 0:00:29]}  Qb4 {[%clk 0:00:27]} 42. Rd1 {[%clk 0:00:25]}  Qb8 {[%clk 0:00:16]} 43. c6 {[%clk 0:00:22]}  Qa7+ {[%clk 0:00:14]} 44. Kh1 {[%clk 0:00:20]}  Rb4 {[%clk 0:00:13]} 45. Rd8+ {[%clk 0:00:20]} 1-0


[Site "https://www.chess.com"]

[Event "Titled Tuesday Blitz March 15 Early 2022"]
[White "Skliarov, Viktor"]
[Black "Riazantsev, Alexander"]
[WhiteFideId "14106736"]
[BlackFideId "4125029"]
[WhiteElo "2229"]
[BlackElo "2595"]
[Result "0-1"]
[Round "04"]
[TimeControl "180+1"]
[Date "2022.03.15"]
[WhiteClock "0:00:06"]
[BlackClock "0:00:18"]

1. e4 {[%clk 0:03:00]}  c6 {[%clk 0:02:59]} 2. d4 {[%clk 0:03:00]}  d5 {[%clk 0:03:00]} 3. e5 {[%clk 0:03:01]}  Bf5 {[%clk 0:02:59]} 4. Nf3 {[%clk 0:03:02]}  e6 {[%clk 0:02:59]} 5. Be2 {[%clk 0:03:02]}  h6 {[%clk 0:02:59]} 6. O-O {[%clk 0:03:03]}  Nd7 {[%clk 0:02:59]} 7. Nbd2 {[%clk 0:03:03]}  c5 {[%clk 0:03:00]} 8. c4 {[%clk 0:02:58]}  Ne7 {[%clk 0:02:59]} 9. Nb3 {[%clk 0:02:55]}  dxc4 {[%clk 0:02:49]} 10. Bxc4 {[%clk 0:02:52]}  a6 {[%clk 0:02:43]} 11. d5 {[%clk 0:02:17]}  Nb6 {[%clk 0:02:32]} 12. d6 {[%clk 0:01:28]}  Nxc4 {[%clk 0:02:31]} 13. dxe7 {[%clk 0:01:28]}  Bxe7 {[%clk 0:02:29]} 14. Nbd2 {[%clk 0:01:05]}  Nxd2 {[%clk 0:02:28]} 15. Bxd2 {[%clk 0:01:05]}  O-O {[%clk 0:02:29]} 16. Rc1 {[%clk 0:00:55]}  b5 {[%clk 0:02:28]} 17. Be3 {[%clk 0:00:54]}  Rc8 {[%clk 0:02:20]} 18. h3 {[%clk 0:00:48]}  Qa5 {[%clk 0:02:08]} 19. a3 {[%clk 0:00:47]}  Rfd8 {[%clk 0:02:08]} 20. Qe1 {[%clk 0:00:45]}  Qxe1 {[%clk 0:02:07]} 21. Rfxe1 {[%clk 0:00:46]}  Kf8 {[%clk 0:02:01]} 22. Nd2 {[%clk 0:00:42]}  c4 {[%clk 0:01:56]} 23. Nf3 {[%clk 0:00:39]}  Ke8 {[%clk 0:01:46]} 24. Nd4 {[%clk 0:00:30]}  Bd3 {[%clk 0:01:45]} 25. f4 {[%clk 0:00:28]}  Bc5 {[%clk 0:01:45]} 26. Nf3 {[%clk 0:00:24]}  Be7 {[%clk 0:01:39]} 27. Kf2 {[%clk 0:00:24]}  Rd5 {[%clk 0:01:37]} 28. g3 {[%clk 0:00:23]}  a5 {[%clk 0:01:35]} 29. Red1 {[%clk 0:00:23]}  b4 {[%clk 0:01:33]} 30. axb4 {[%clk 0:00:23]}  axb4 {[%clk 0:01:34]} 31. Ra1 {[%clk 0:00:23]}  Rcd8 {[%clk 0:01:24]} 32. Rdc1 {[%clk 0:00:20]}  f6 {[%clk 0:01:10]} 33. Ra7 {[%clk 0:00:20]}  R5d7 {[%clk 0:01:02]} 34. Rxd7 {[%clk 0:00:15]}  Rxd7 {[%clk 0:01:02]} 35. Ra1 {[%clk 0:00:14]}  Kf7 {[%clk 0:00:58]} 36. Ra8 {[%clk 0:00:12]}  Be4 {[%clk 0:00:57]} 37. Rc8 {[%clk 0:00:11]}  Bd5 {[%clk 0:00:51]} 38. exf6 {[%clk 0:00:11]}  gxf6 {[%clk 0:00:50]} 39. f5 {[%clk 0:00:11]}  e5 {[%clk 0:00:47]} 40. Bxh6 {[%clk 0:00:12]}  Ra7 {[%clk 0:00:41]} 41. Nh4 {[%clk 0:00:11]}  c3 {[%clk 0:00:22]} 42. Ng6 {[%clk 0:00:08]}  Bd6 {[%clk 0:00:18]} 43. bxc3 {[%clk 0:00:06]}  b3 {[%clk 0:00:18]} 44. Nh8+ {[%clk 0:00:06]}  Ke7 {[%clk 0:00:18]} 45. Bf8+ {[%clk 0:00:07]}  Kd7 {[%clk 0:00:18]} 46. Bxd6 {[%clk 0:00:06]}  Kxc8 {[%clk 0:00:18]} 0-1


[Site "https://www.chess.com"]

[Event "Titled Tuesday Blitz March 15 Early 2022"]
[White "Slugin, Sergey"]
[Black "Santos Ruiz, Miguel"]
[WhiteFideId "4122569"]
[BlackFideId "22291482"]
[WhiteElo "2358"]
[BlackElo "2486"]
[Result "0-1"]
[Round "04"]
[TimeControl "180+1"]
[Date "2022.03.15"]
[WhiteClock "0:00:02"]
[BlackClock "0:00:09"]

1. c4 {[%clk 0:03:00]}  e5 {[%clk 0:02:59]} 2. Nc3 {[%clk 0:03:01]}  Bb4 {[%clk 0:02:58]} 3. Nd5 {[%clk 0:02:59]}  Na6 {[%clk 0:02:56]} 4. a3 {[%clk 0:02:48]}  Ba5 {[%clk 0:02:52]} 5. b4 {[%clk 0:02:24]}  c6 {[%clk 0:02:52]} 6. Nc3 {[%clk 0:02:18]}  Bc7 {[%clk 0:02:51]} 7. e4 {[%clk 0:02:16]}  Nf6 {[%clk 0:02:51]} 8. Bb2 {[%clk 0:02:11]}  O-O {[%clk 0:02:50]} 9. Nf3 {[%clk 0:02:11]}  d5 {[%clk 0:02:44]} 10. cxd5 {[%clk 0:01:58]}  cxd5 {[%clk 0:02:45]} 11. d3 {[%clk 0:01:58]}  d4 {[%clk 0:02:31]} 12. Nb1 {[%clk 0:01:45]}  Bd6 {[%clk 0:02:00]} 13. Be2 {[%clk 0:01:44]}  b5 {[%clk 0:02:00]} 14. O-O {[%clk 0:01:40]}  Nc7 {[%clk 0:01:57]} 15. Nbd2 {[%clk 0:01:32]}  a5 {[%clk 0:01:57]} 16. bxa5 {[%clk 0:01:33]}  Rxa5 {[%clk 0:01:57]} 17. a4 {[%clk 0:01:34]}  Qe7 {[%clk 0:01:42]} 18. axb5 {[%clk 0:01:31]}  Rxb5 {[%clk 0:01:42]} 19. Nc4 {[%clk 0:01:31]}  Be6 {[%clk 0:01:31]} 20. Nfd2 {[%clk 0:01:17]}  Rfb8 {[%clk 0:01:17]} 21. Ba3 {[%clk 0:01:08]}  Bxa3 {[%clk 0:01:13]} 22. Rxa3 {[%clk 0:01:09]}  R5b7 {[%clk 0:00:57]} 23. Qa1 {[%clk 0:01:08]}  Nb5 {[%clk 0:00:54]} 24. Ra5 {[%clk 0:00:58]}  Nd7 {[%clk 0:00:48]} 25. g3 {[%clk 0:00:35]}  Nc3 {[%clk 0:00:41]} 26. Bf3 {[%clk 0:00:35]}  f6 {[%clk 0:00:40]} 27. Ra8 {[%clk 0:00:26]}  Nc5 {[%clk 0:00:27]} 28. Rxb8+ {[%clk 0:00:19]}  Rxb8 {[%clk 0:00:28]} 29. Qa3 {[%clk 0:00:16]}  Qf8 {[%clk 0:00:21]} 30. Rc1 {[%clk 0:00:06]}  Nxd3 {[%clk 0:00:20]} 31. Rxc3 {[%clk 0:00:07]}  dxc3 {[%clk 0:00:19]} 32. Qxc3 {[%clk 0:00:08]}  Nc5 {[%clk 0:00:17]} 33. Kg2 {[%clk 0:00:07]}  Qd8 {[%clk 0:00:16]} 34. Ne3 {[%clk 0:00:04]}  Qd4 {[%clk 0:00:15]} 35. Qc2 {[%clk 0:00:04]}  Nd3 {[%clk 0:00:15]} 36. Qc6 {[%clk 0:00:04]}  Ne1+ {[%clk 0:00:15]} 37. Kf1 {[%clk 0:00:04]}  Qxd2 {[%clk 0:00:14]} 38. Qxe6+ {[%clk 0:00:03]}  Kh8 {[%clk 0:00:14]} 39. Bh5 {[%clk 0:00:03]}  Nd3 {[%clk 0:00:14]} 40. Qf5 {[%clk 0:00:03]}  Kg8 {[%clk 0:00:09]} 41. Qe6+ {[%clk 0:00:03]}  Kh8 {[%clk 0:00:09]} 42. Qf5 {[%clk 0:00:04]}  Rd8 {[%clk 0:00:10]} 43. Kg2 {[%clk 0:00:03]}  Rf8 {[%clk 0:00:10]} 44. Ng4 {[%clk 0:00:02]}  Ne1+ {[%clk 0:00:09]} 45. Kh3 {[%clk 0:00:02]}  Qe2 {[%clk 0:00:09]} 0-1


[Site "https://www.chess.com"]